bitfinex/quotes_ETHUSD_20260307
["timestamp","ask_amount","ask_price","bid_price","bid_amount"]
[1772924722201,0.47389231,1968.4,1968.1,0.001]
[1772924722940,0.47389231,1968.4,1968.1,1.27124854]
[1772924723605,0.47389231,1968.4,1968.1,1.72454675]
[1772924726536,0.002,1968.4,1968.2,0.45329821]
[1772924727736,0.47189231,1968.8,1968.3,0.45329821]
[1772924729106,0.47189231,1968.8,1968.3,0.45429821]
[1772924729306,0.47189231,1968.7,1968.3,1.7244238]
[1772924729938,0.002,1968.4,1968.3,1.7244238]
[1772924737738,0.002,1968.4,1968.3,0.001]
[1772924737939,0.2936664,1968.4,1968.3,0.001]
[1772924738141,0.45038566,1968.6,1968.2,0.50065883]
[1772924738310,0.45038566,1968.8,1968.2,0.50065883]
[1772924739851,0.45038566,1968.8,1968.4,0.49965883]
[1772924740019,0.45192452,1969.0,1968.4,0.49965883]
[1772924741937,0.45192452,1969.0,1968.6,0.49965883]
[1772924742138,0.002,1968.7,1968.6,0.49965883]
[1772924743857,0.00353886,1969.0,1968.6,0.49965883]
[1772924744062,1.26922881,1969.8,1968.8,0.49965883]
[1772924745660,5.07678225,1969.8,1968.8,0.49965883]
[1772924746190,5.07678225,1969.8,1969.0,0.49999999]
[1772924747166,3.01971341,1969.9,1969.0,0.49999999]
[1772924747332,4.28885215,1969.9,1969.0,0.49999999]
[1772924748167,4.28885215,1969.9,1969.1,1.26961556]
[1772924748364,4.28885215,1969.9,1969.1,1.76961555]
[1772924750071,4.28885215,1969.9,1969.2,0.49999999]
[1772924750768,4.28885215,1969.9,1968.8,6.3449781]
[1772924750769,4.28885215,1969.9,1968.9,0.49999999]
[1772924750962,0.90264169,1969.8,1968.7,0.49999999]
[1772924752159,1.439,1969.7,1968.7,0.49999999]
[1772924755084,1.26929325,1969.6,1968.8,0.50099999]
[1772924761281,1.26929325,1969.6,1968.9,0.49999999]
[1772924762760,1.26929325,1969.6,1969.0,0.49999999]
[1772924763080,3.84,1969.7,1969.0,0.49999999]
[1772924763973,3.84,1969.7,1969.1,0.49999999]
[1772924764184,1.27116982,1969.8,1969.1,0.49999999]
[1772924764680,0.002,1969.8,1969.1,0.49999999]
[1772924769151,0.002,1969.8,1969.2,0.001]
[1772924769352,0.002,1969.7,1969.2,0.50099999]
[1772924771686,0.002,1969.7,1969.3,0.49999999]
[1772924773999,0.002,1969.7,1969.4,0.52011084]
[1772924779402,0.002,1969.7,1969.4,0.51376909]
[1772924779802,0.002,1969.8,1969.4,0.51276909]
[1772924780710,0.002,1969.8,1969.6,0.51276909]
[1772924781081,0.002,1969.8,1969.2,0.001]
[1772924781082,0.45315987,1969.8,1969.2,0.001]
[1772924781286,0.45315987,1969.8,1969.2,0.45692686]
[1772924782813,1.72038868,1969.7,1969.2,0.45692686]
[1772924783523,0.45115987,1969.6,1969.2,0.45692686]
[1772924783698,0.45115987,1969.6,1969.5,0.001]
[1772924784818,1.72045312,1969.6,1969.5,0.001]
[1772924788137,0.45315987,1969.7,1969.5,0.001]
[1772924790126,1.72045312,1969.6,1969.5,0.001]
[1772924793002,0.49922754,1969.4,1968.8,0.46341519]
[1772924793204,0.49922754,1969.4,1968.9,0.001]
[1772924793499,0.49922754,1969.4,1968.9,0.46341519]
[1772924793699,0.49922754,1969.4,1969.0,0.46341519]
[1772924793903,5.60852079,1969.6,1969.0,0.46241519]
[1772924794127,5.60852079,1969.6,1969.2,0.46241519]
[1772924794332,1.76852079,1969.6,1969.2,0.46241519]
[1772924794705,0.49922754,1969.5,1969.2,0.46241519]
[1772924794905,1.76864276,1969.5,1969.2,0.46241519]
[1772924797535,1.76864276,1969.5,1969.3,0.001]
[1772924797840,0.002,1969.4,1969.3,0.001]
[1772924799434,0.50122754,1969.4,1969.3,0.001]
[1772924808349,0.50122754,1969.4,1969.2,0.001]
[1772924808555,0.49922754,1969.3,1969.2,0.001]
[1772924809716,0.49922754,1969.3,1969.0,0.001]
[1772924809917,0.49922754,1969.3,1969.0,0.002]
[1772924810525,0.49922754,1969.1,1969.0,0.002]
[1772924812446,1.7688431,1969.1,1969.0,0.002]
[1772924813132,1.7688431,1969.1,1969.0,0.001]
[1772924816313,0.49922754,1969.0,1968.8,0.001]
[1772924816530,0.49922754,1969.0,1968.7,0.001]
[1772924817452,1.76897206,1968.9,1968.7,0.001]
[1772924817684,0.49922754,1968.8,1968.7,0.001]
[1772924819978,1.76903656,1968.8,1968.7,0.001]
[1772924820153,0.49922754,1968.7,1968.3,0.46341519]
[1772924822053,1.76915421,1968.7,1968.3,0.46341519]
[1772924824763,1.76915421,1968.7,1968.4,0.49396211]
[1772924830190,1.76915421,1968.7,1968.4,0.001]
[1772924831582,1.76915421,1968.7,1968.4,0.49396211]
[1772924836174,0.4731231,1968.6,1968.4,0.001]
[1772924837708,0.4751231,1968.6,1968.4,0.001]
[1772924838215,0.4731231,1968.5,1968.4,0.001]
[1772924838394,0.4731231,1968.5,1968.1,0.49396211]
[1772924839611,0.002,1968.6,1968.2,0.49296211]
[1772924840123,1.27193861,1968.6,1968.2,0.49296211]
[1772924840298,0.002,1968.6,1968.2,0.49296211]
[1772924840906,0.002,1968.6,1968.2,1.76315267]
[1772924841111,0.002,1968.6,1968.3,0.49296211]
[1772924849724,0.002,1968.6,1968.4,0.001]
[1772924850102,0.002,1968.5,1968.4,0.001]
[1772924855037,0.46847906,1968.4,1967.8,0.001]
[1772924855249,0.46847906,1968.2,1967.8,0.001]
[1772924857231,0.46847906,1968.0,1967.8,0.001]
[1772924857448,1.27018117,1968.3,1967.8,0.48657927]
[1772924857754,0.05081042,1968.2,1967.8,0.48657927]
[1772924860754,1.32101319,1968.2,1967.8,0.48657927]
[1772924862934,1.32101319,1968.2,1967.9,0.48657927]
[1772924866564,1.78949225,1968.2,1967.9,0.48657927]
[1772924866871,0.46847906,1968.1,1967.9,0.001]
[1772924867038,0.05081042,1968.0,1967.9,0.001]
[1772924870774,0.47047906,1968.4,1967.9,0.17174114]
[1772924870965,1.74055194,1968.4,1967.9,0.17174114]
[1772924871642,0.46847906,1968.3,1967.9,0.17174114]
[1772924875342,0.46847906,1968.3,1968.0,1.2713252]
[1772924875542,0.46847906,1968.3,1968.0,1.39125592]
[1772924875841,0.002,1968.2,1968.0,1.39125592]
[1772924883164,0.002,1968.2,1968.1,0.11993072]
[1772924883746,0.002,1968.4,1968.2,0.11993072]
[1772924886381,0.002,1968.4,1968.2,1.39011923]
[1772924888068,0.002,1968.3,1968.2,1.39011923]
[1772924888958,0.47498815,1968.5,1968.3,0.11993072]
[1772924888959,0.002,1968.5,1968.3,0.11993072]
[1772924889459,0.47498815,1968.5,1968.2,1.39011923]
[1772924890080,0.47498815,1968.5,1968.2,2.63711923]
[1772924894494,0.002,1968.7,1968.3,0.46605211]
[1772924895795,0.002,1968.7,1968.3,0.51685737]
[1772924896677,0.002,1968.7,1968.5,0.46605211]
[1772924898795,0.002,1968.7,1968.5,1.73600106]
[1772924900168,0.002,1968.6,1968.5,1.73600106]
[1772924900369,0.47498815,1968.8,1968.5,1.73600106]
[1772924901073,1e-08,1968.8,1968.5,1.73600106]
[1772924901269,0.47498815,1968.9,1968.5,1.73600106]
[1772924902181,0.47498815,1968.9,1968.6,0.46605211]
[1772924902999,0.002,1968.9,1968.6,0.46605211]
[1772924903301,0.002,1968.9,1968.7,0.46605211]
[1772924905903,0.47498815,1968.9,1968.6,0.46605211]
[1772924906211,0.47498815,1968.9,1968.4,0.46605211]
[1772924907179,0.002,1968.9,1968.4,0.46605211]
[1772924909601,0.002,1968.9,1968.5,1.27000254]
[1772924909806,0.002,1968.9,1968.6,0.46605211]
[1772924911820,0.002,1968.9,1968.6,1.73595017]
[1772924912122,0.002,1968.8,1968.6,1.73595017]
[1772924912686,0.002,1968.8,1968.7,0.47864678]
[1772924913627,0.002,1968.9,1968.7,0.47864678]
[1772924913785,0.47452701,1969.0,1968.7,0.47864678]
[1772924914216,0.47452701,1969.0,1968.7,1.74848141]
[1772924915836,0.00153886,1969.0,1968.8,0.47864678]
[1772924916400,0.45920594,1969.0,1968.7,1.74848141]
[1772924917036,0.45920594,1969.0,1968.4,0.001]
[1772924917327,0.45920594,1969.0,1968.4,1.27105573]
[1772924918031,0.45920594,1969.0,1968.4,0.001]
[1772924918333,0.45920594,1969.0,1968.3,0.001]
[1772924918334,0.45766708,1968.8,1968.3,0.001]
[1772924922407,0.45766708,1968.6,1968.3,0.001]
[1772924924014,0.45766708,1968.6,1968.4,0.001]
[1772924935950,0.45766708,1968.6,1968.5,0.001]
[1772924936553,0.45966708,1968.6,1968.5,0.001]
[1772924938861,0.002,1968.8,1968.6,0.47864678]
[1772924939167,3.84153886,1969.0,1968.6,0.47864678]
[1772924941270,0.00153886,1969.0,1968.7,0.45262821]
[1772924944969,0.49880865,1969.0,1968.5,0.001]
[1772924947258,0.49726979,1968.8,1968.5,0.001]
[1772924948079,0.49726979,1968.8,1968.6,0.001]
[1772924948587,0.49726979,1968.8,1968.5,0.001]
[1772924949383,0.49726979,1968.7,1968.5,0.001]
[1772924959690,1.76717513,1968.7,1968.5,0.001]
[1772924959881,1.76714519,1968.7,1968.5,0.001]
[1772924960066,1.76714519,1968.7,1968.6,0.001]
[1772924960781,0.45111692,1968.6,1968.4,0.001]
[1772924961197,1.2698754,1968.7,1968.4,0.49195862]
[1772924961493,1.72099232,1968.7,1968.4,0.49195862]
[1772924963175,1.2698754,1968.7,1968.4,0.49195862]
[1772924963499,1.72094809,1968.8,1968.4,0.49195862]
[1772924971379,0.45111692,1968.7,1968.4,0.49195862]
[1772924971882,0.45111692,1968.7,1968.5,0.001]
[1772924972904,0.45311692,1968.7,1968.5,0.001]
[1772924984515,0.002,1968.6,1968.5,0.001]
[1772924988218,0.4538941,1968.6,1968.5,0.001]
[1772924988405,0.4538941,1968.6,1968.3,0.001]
[1772924990310,0.4518941,1968.5,1968.3,0.001]
[1772924992806,1.72195052,1968.5,1968.3,0.001]
[1772924994419,0.4518941,1968.4,1968.3,0.001]
[1772924994907,1.72196115,1968.4,1968.3,0.001]
[1772924998724,0.4518941,1968.3,1967.8,0.001]
[1772924999225,0.4518941,1968.3,1967.6,0.001]
[1772924999226,0.4518941,1968.2,1967.6,0.001]
[1772924999394,0.4518941,1968.2,1967.6,0.49443037]
[1772925000604,1.27026065,1968.1,1967.6,0.49443037]
[1772925000804,0.4518941,1968.0,1967.6,0.49443037]
[1772925001216,1.27011634,1968.4,1967.7,0.46038966]
[1772925001416,0.002,1968.5,1967.7,0.46038966]
[1772925002820,0.002,1968.5,1967.9,0.45200789]
[1772925003828,0.49927969,1968.5,1967.9,0.45200789]
[1772925006050,0.49927969,1968.5,1968.1,0.45200789]
[1772925007027,1.76928992,1968.5,1968.1,0.45200789]
[1772925007234,0.49727969,1968.4,1968.1,0.45200789]
[1772925008753,0.49727969,1968.3,1967.9,0.45200789]
[1772925011452,0.49727969,1968.3,1967.9,1.72236835]
[1772925011951,0.49727969,1968.3,1968.0,0.45200789]
[1772925014057,0.44647701,1968.3,1968.0,0.45200789]
[1772925018727,1.27207887,1968.4,1968.1,0.45200789]
[1772925018948,1.76935856,1968.4,1968.1,0.45200789]
[1772925019470,1.76935856,1968.4,1968.0,0.45200789]
[1772925019773,0.49727969,1968.3,1968.0,0.45200789]
[1772925020336,0.002,1968.4,1968.0,0.45200789]
[1772925020540,0.002,1968.4,1968.2,0.45200789]
[1772925027778,0.49927969,1968.4,1967.9,0.17327144]
[1772925030686,1.76934723,1968.4,1968.0,1.2703252]
[1772925030981,0.49727969,1968.3,1968.0,0.17327144]
[1772925031792,0.49727969,1968.3,1968.0,0.001]
[1772925031951,0.49927969,1968.3,1968.0,0.001]
[1772925032148,0.002,1968.3,1968.0,0.17427144]
[1772925032385,0.002,1968.4,1968.1,0.17127144]
[1772925034296,0.002,1968.4,1968.2,0.17127144]
[1772925038710,0.002,1968.4,1968.3,0.17127144]
[1772925044253,0.46543953,1968.6,1968.3,0.17127144]
[1772925047253,0.46543953,1968.6,1968.3,1.4414013]
[1772925049155,0.002,1968.6,1968.4,0.17127144]
[1772925049345,0.002,1968.6,1968.4,1.44132976]
[1772925052566,0.002,1968.6,1968.5,0.17127144]
[1772925055871,0.002,1968.6,1968.5,1.44127398]
[1772925063079,0.45910485,1968.9,1968.6,0.24760979]
[1772925065178,0.002,1968.9,1968.6,1.51750136]
[1772925065350,0.45910485,1968.9,1968.6,1.51750136]
[1772925067780,0.45910485,1968.9,1968.6,1.51850136]
[1772925067962,0.002,1968.8,1968.6,1.51850136]
[1772925075187,0.002,1968.8,1968.6,2.78350136]
[1772925079060,0.46064371,1969.0,1968.7,0.24760979]
[1772925080372,0.002,1968.8,1968.7,0.24760979]
[1772925080588,0.46064371,1969.0,1968.7,0.24760979]
[1772925081175,0.46064371,1969.0,1968.7,1.26982654]
[1772925083480,0.46064371,1969.0,1968.7,1.51743633]
[1772925084250,0.46064371,1969.0,1968.7,1.26982654]
[1772925084802,0.45710485,1968.9,1968.6,1.266]
[1772925085005,0.45710485,1968.9,1968.6,0.001]
[1772925088242,0.00353886,1969.0,1968.6,0.001]
[1772925088403,0.45710485,1968.9,1968.6,0.001]
[1772925089720,0.45710485,1968.9,1968.5,0.001]
[1772925090722,0.45710485,1968.8,1968.5,0.001]
[1772925091897,0.45710485,1968.8,1968.7,0.001]
[1772925092094,0.45910485,1968.8,1968.7,0.001]
[1772925097030,0.48126781,1968.7,1968.5,0.001]
[1772925099430,1.75120583,1968.6,1968.5,0.001]
[1772925100232,0.48126781,1968.6,1968.5,0.001]
[1772925104837,1.75120583,1968.6,1968.5,0.001]
[1772925105305,0.48126781,1968.6,1968.5,0.001]
[1772925110007,0.48126781,1968.6,1968.4,0.001]
[1772925110008,0.48126781,1968.5,1968.3,0.001]
[1772925110251,0.48126781,1968.5,1968.1,0.001]
[1772925110447,0.48126781,1968.3,1967.9,0.001]
[1772925111863,0.48126781,1968.5,1968.0,0.25060979]
[1772925112154,1.75133486,1968.4,1968.0,0.25160979]
[1772925112308,0.48126781,1968.3,1968.0,0.25160979]
[1772925115612,0.48126781,1968.3,1968.1,0.001]
[1772925117042,0.48126781,1968.3,1968.1,0.002]
[1772925117948,1.75140222,1968.3,1968.1,0.002]
[1772925120437,0.48126781,1968.2,1968.1,0.002]
[1772925121173,0.48126781,1968.2,1967.7,0.001]
[1772925123381,0.5,1968.0,1967.7,0.001]
[1772925123669,5.61009647,1968.4,1967.7,0.001]
[1772925124031,5.61008804,1968.4,1967.7,0.001]
[1772925124847,4.34,1968.4,1967.7,0.001]
[1772925125477,3.84,1968.4,1967.7,0.001]
[1772925127376,1.77193826,1968.6,1967.7,0.001]
[1772925127577,1.77193826,1968.6,1967.8,0.001]
[1772925127778,0.002,1968.3,1967.8,0.001]
[1772925136817,0.002,1968.4,1967.8,0.001]
[1772925139901,0.002,1968.3,1967.8,0.001]
[1772925140190,0.002,1968.4,1967.8,0.001]
[1772925142790,0.502,1968.4,1967.8,0.001]
[1772925143795,0.502,1968.4,1967.9,1.268]
[1772925145303,0.502,1968.4,1968.0,1.2703252]
[1772925151504,0.002,1968.3,1968.0,1.2703252]
[1772925151911,0.48207624,1968.5,1968.1,0.48879268]
[1772925154603,0.48207624,1968.5,1968.2,1.27019611]
[1772925157224,0.48207624,1968.5,1968.2,0.45235515]
[1772925158927,0.48207624,1968.5,1968.1,0.45235515]
[1772925160031,0.48207624,1968.5,1968.2,1.27019611]
[1772925163125,0.002,1968.4,1968.2,1.27019611]
[1772925166421,0.002,1968.4,1968.2,1.72255126]
[1772925169020,0.002,1968.4,1968.3,1.277]
[1772925173406,0.002,1968.4,1968.2,1.72255126]
[1772925173615,0.002,1968.4,1968.3,1.279]
[1772925175129,0.002,1968.4,1968.3,1.28]
[1772925184642,0.002,1968.6,1968.4,0.46629131]
[1772925186516,0.002,1968.6,1968.5,1.27000254]
[1772925186715,0.002,1968.6,1968.4,0.46629131]
[1772925186716,0.002,1968.6,1968.4,1.73631166]
[1772925187020,0.002,1968.6,1968.4,1.73731166]
[1772925187699,0.002,1968.5,1968.4,1.73731166]
[1772925189541,0.48240713,1968.5,1968.3,0.001]
[1772925199250,0.48240713,1968.5,1968.4,0.001]
[1772925208960,0.48040713,1968.4,1968.2,0.001]
[1772925209253,0.48040713,1968.4,1968.0,0.001]
[1772925211259,0.48040713,1968.2,1968.0,0.001]
[1772925211888,0.48040713,1968.2,1968.1,0.001]
[1772925213856,1.75060324,1968.2,1968.1,0.001]
[1772925222272,0.48040713,1968.2,1968.1,0.001]
[1772925223870,0.48240713,1968.2,1968.1,0.001]
[1772925224873,1.75260324,1968.2,1968.1,0.001]
[1772925225971,5.08239886,1968.4,1968.2,0.46236238]
[1772925225972,0.002,1968.4,1968.2,0.46236238]
[1772925226474,0.002,1968.4,1968.1,0.46336238]
[1772925228173,0.48187795,1968.4,1968.1,0.46336238]
[1772925231258,1.75194608,1968.4,1968.1,0.46336238]
[1772925231463,1.27206813,1968.4,1968.1,0.46336238]
[1772925232882,0.002,1968.4,1968.1,0.46336238]
[1772925233186,1.2720676,1968.4,1968.1,0.46336238]
[1772925234794,0.48187795,1968.4,1968.1,0.46336238]
[1772925235458,0.48187795,1968.4,1968.2,0.001]
[1772925235687,0.002,1968.3,1968.2,0.001]
[1772925240897,0.48187795,1968.3,1968.1,0.001]
[1772925242996,1.72274192,1968.2,1968.1,0.001]
[1772925247176,1.72474192,1968.2,1968.1,0.001]
[1772925248700,0.002,1968.2,1968.1,0.001]
[1772925264614,0.002,1968.2,1968.1,0.47201284]
[1772925271125,0.45454581,1968.2,1968.1,0.001]
[1772925271323,0.002,1968.2,1968.1,0.001]
[1772925281630,0.002,1968.2,1968.1,0.47624491]
[1772925281834,0.002,1968.4,1968.1,0.47624491]
[1772925282036,0.002,1968.4,1968.2,0.001]
[1772925282723,1.27206751,1968.4,1968.2,0.001]
[1772925282928,1.72344912,1968.4,1968.2,0.001]
[1772925284736,0.45138161,1968.3,1968.2,0.001]
[1772925286841,0.45138161,1968.3,1968.1,0.001]
[1772925289744,1.72156821,1968.3,1968.1,0.001]
[1772925290942,0.45138161,1968.2,1968.0,0.001]
[1772925294043,0.45338161,1968.2,1968.0,0.001]
[1772925295047,0.45138161,1968.1,1967.9,0.001]
[1772925296841,0.45338161,1968.2,1967.9,0.47624491]
[1772925297052,0.45338161,1968.2,1967.9,1.74660355]
[1772925297222,0.45338161,1968.2,1967.9,0.47624491]
[1772925299151,1.72361258,1968.2,1967.9,0.47624491]
[1772925301529,0.45338161,1968.2,1967.9,0.47624491]
[1772925301734,0.002,1968.3,1968.0,0.47883133]
[1772925306340,0.002,1968.3,1968.1,0.001]
[1772925306549,0.002,1968.2,1968.1,0.47407319]
[1772925307566,0.002,1968.6,1968.3,0.47307319]
[1772925307770,1.27183755,1968.8,1968.3,0.47307319]
[1772925308668,1.27183755,1968.8,1968.4,0.47307319]
[1772925310760,0.002,1968.8,1968.5,0.47307319]
[1772925318385,0.001,1968.7,1968.5,0.47307319]
[1772925319958,0.45293508,1968.7,1968.1,0.47407319]
[1772925320161,0.45193508,1968.6,1968.1,0.001]
[1772925322463,0.45193508,1968.4,1968.1,0.001]
[1772925325704,1.27013158,1968.3,1968.1,0.001]
[1772925326069,1.72206666,1968.3,1968.1,0.001]
[1772925328495,1.72207111,1968.3,1968.1,0.001]
[1772925329899,1.72207111,1968.3,1968.2,0.001]
[1772925334712,0.4682538,1968.2,1967.9,0.001]
[1772925334875,0.4682538,1968.2,1967.5,0.4976407]
[1772925336475,1.27026065,1968.1,1967.5,0.4976407]
[1772925336808,0.4682538,1968.0,1967.5,0.4976407]
[1772925340504,1.73864355,1967.9,1967.5,0.4976407]
[1772925341692,1.73864355,1967.9,1967.7,0.001]
[1772925347004,0.4682538,1967.8,1967.7,0.001]
[1772925348317,0.002,1968.2,1967.7,0.4976407]
[1772925348533,0.002,1968.2,1967.9,0.4966407]
[1772925354337,0.001,1968.1,1967.9,0.4966407]
[1772925354693,0.001,1968.1,1968.0,0.4966407]
[1772925358337,0.001,1968.1,1967.9,1.27037761]
[1772925358501,0.4682538,1968.0,1967.5,0.001]
[1772925358702,0.4682538,1967.6,1967.1,0.4966407]
[1772925358920,0.4682538,1967.6,1967.1,0.003]
[1772925359130,0.4682538,1967.6,1967.0,0.003]
[1772925359303,0.4682538,1967.6,1966.7,0.4966407]
[1772925359504,0.4682538,1967.4,1966.8,0.003]
[1772925359823,0.4682538,1967.4,1966.8,0.4996407]
[1772925360703,0.4682538,1967.4,1966.9,0.003]
[1772925360931,0.4682538,1967.4,1967.0,0.4966407]
[1772925362745,1.73896824,1967.4,1967.1,0.46027505]
[1772925362910,1.73896824,1967.4,1967.1,0.45727505]
[1772925362911,1.27071444,1967.4,1967.1,0.45727505]
[1772925363112,1.75732684,1967.5,1967.1,0.45727505]
[1772925363316,1.75732684,1967.5,1967.1,0.46027505]
[1772925364836,0.49288704,1967.7,1967.2,0.48420843]
[1772925365503,0.49288704,1967.7,1967.3,0.48420843]
[1772925365707,0.49288704,1967.7,1967.3,0.48120843]
[1772925366731,0.49388704,1967.7,1967.3,0.48120843]
[1772925366939,1.76445823,1967.7,1967.3,0.48120843]
[1772925367238,1.27157119,1967.7,1967.3,0.48120843]
[1772925368941,0.49388704,1967.7,1967.3,0.48120843]
[1772925370713,0.49388704,1967.7,1967.4,0.48420843]
[1772925371043,0.49388704,1967.7,1967.4,0.48120843]
[1772925371943,1.27058345,1967.6,1967.4,0.48120843]
[1772925372450,1.76347049,1967.6,1967.3,0.003]
[1772925372655,1.76347049,1967.6,1967.4,0.003]
[1772925372821,1.76347049,1967.6,1967.3,0.003]
[1772925374246,1.76347049,1967.6,1967.3,0.48420843]
[1772925377747,1.76347049,1967.6,1967.4,0.003]
[1772925378955,0.49388704,1967.7,1967.5,0.003]
[1772925379268,0.001,1967.7,1967.5,0.48420843]
[1772925379446,0.001,1967.7,1967.6,0.48420843]
[1772925379624,0.001,1967.7,1967.6,0.48120843]
[1772925380952,0.001,1967.7,1967.5,0.48120843]
[1772925381148,0.001,1967.7,1967.5,0.48420843]
[1772925386164,0.001,1967.7,1967.6,0.003]
[1772925392441,0.00153886,1968.0,1967.7,0.4732104]
[1772925393843,0.00153886,1968.0,1967.9,0.4732104]
[1772925394661,0.00153886,1968.0,1967.9,1.74360015]
[1772925394845,0.00153886,1968.0,1967.9,0.4732104]
[1772925395164,0.48277429,1968.2,1967.9,0.4762104]
[1772925395377,0.002,1968.2,1967.9,0.4732104]
[1772925395679,0.002,1968.2,1968.0,0.4762104]
[1772925398148,0.002,1968.2,1968.1,0.4762104]
[1772925398350,0.002,1968.2,1968.1,0.4732104]
[1772925399472,0.002,1968.2,1968.0,0.4732104]
[1772925399655,0.002,1968.2,1968.1,0.003]
[1772925409583,0.002,1968.2,1968.0,0.4732104]
[1772925409772,0.002,1968.2,1968.1,0.003]
[1772925413265,0.002,1968.2,1968.1,0.4762104]
[1772925414684,0.002,1968.2,1968.1,0.003]
[1772925422703,0.002,1968.2,1968.1,0.46397555]
[1772925423301,0.002,1968.2,1968.0,1.27132188]
[1772925423302,0.46467114,1968.5,1968.2,0.46397555]
[1772925423505,1.27092501,1968.7,1968.2,0.46097555]
[1772925423705,0.42173091,1968.6,1968.3,0.46397555]
[1772925423885,0.42173091,1968.6,1968.3,0.46097555]
[1772925425880,0.001,1968.7,1968.4,0.46397555]
[1772925426210,0.001,1968.7,1968.5,0.46397555]
[1772925426405,0.001,1968.7,1968.5,0.46097555]
[1772925428212,0.001,1968.7,1968.6,0.46097555]
[1772925428383,0.001,1968.7,1968.6,0.46397555]
[1772925438217,0.001,1968.7,1968.6,0.003]
[1772925439624,0.001,1968.7,1968.5,0.46097555]
[1772925439919,0.001,1968.7,1968.6,0.003]
[1772925441824,0.001,1968.7,1968.6,0.004]
[1772925445012,0.001,1968.7,1968.6,0.46497555]
[1772925445406,0.00353886,1969.0,1968.7,0.46397555]
[1772925445609,1.26942518,1969.4,1968.8,0.46097555]
[1772925445801,1.69215609,1969.4,1968.8,0.46397555]
[1772925446003,1.69215853,1969.4,1969.0,0.46097555]
[1772925447995,0.42273091,1969.3,1969.1,0.003]
[1772925448200,0.42273091,1969.3,1969.0,0.003]
[1772925448430,0.42273091,1969.3,1968.9,0.003]
[1772925449431,0.42273091,1969.2,1968.9,0.003]
[1772925450732,0.42273091,1969.2,1969.0,0.003]
[1772925450932,0.42273091,1969.2,1968.7,1.7307987]
[1772925451635,1.26956001,1969.2,1968.7,1.7307987]
[1772925451834,0.42273091,1969.1,1968.7,1.7307987]
[1772925453034,0.42273091,1969.1,1968.8,0.49774018]
[1772925454917,0.42273091,1969.1,1968.8,1.76752646]
[1772925455236,0.002,1969.0,1968.8,1.76752646]
[1772925455624,0.002,1969.0,1968.8,1.26978628]
[1772925455808,0.002,1969.0,1968.9,0.50074018]
[1772925458322,0.002,1969.0,1968.9,0.49774018]
[1772925460937,0.002,1969.0,1968.9,0.50074018]
[1772925467191,0.002,1969.0,1968.9,0.003]
[1772925469658,0.002,1969.0,1968.8,1.76850805]
[1772925469858,0.002,1969.0,1968.9,0.003]
[1772925470455,0.002,1969.0,1968.9,0.50074018]
[1772925471765,0.002,1969.0,1968.9,0.003]
[1772925473733,0.002,1969.0,1968.9,1.7704847]
[1772925473938,0.002,1969.1,1969.0,0.49774018]
[1772925474153,0.002,1969.1,1969.0,0.50074018]
[1772925478143,0.002,1969.1,1969.0,1.77042022]
[1772925479947,0.002,1969.1,1969.0,1.77142022]
[1772925480475,0.002,1969.2,1969.0,1.77142022]
[1772925480476,1.26909995,1969.9,1969.1,0.49774018]
[1772925480876,1.26909995,1969.9,1969.3,0.5]
[1772925481246,1.26909995,1969.9,1969.4,0.503]
[1772925481451,1.26909995,1969.9,1969.4,0.5]
[1772925482200,0.00153886,1970.0,1969.5,0.503]
[1772925486082,0.00153886,1970.0,1969.6,0.5]
[1772925486282,0.00153886,1970.0,1969.7,0.003]
[1772925488358,0.00153886,1970.0,1969.6,0.5]
[1772925488684,0.00153886,1970.0,1969.7,0.003]
[1772925490054,0.00153886,1970.0,1969.2,1.76953108]
[1772925490487,0.00153886,1970.0,1969.3,0.5]
[1772925491789,0.00153886,1970.0,1969.5,0.001]
[1772925491961,0.002,1969.9,1969.5,0.001]
[1772925494693,0.002,1969.9,1969.6,0.003]
[1772925499659,0.002,1969.9,1969.7,0.003]
[1772925499859,0.002,1969.9,1969.5,0.001]
[1772925504895,0.002,1969.9,1969.6,0.003]
[1772925506478,0.002,1969.8,1969.6,0.003]
[1772925507880,0.002,1969.8,1969.6,0.503]
[1772925509099,0.002,1969.8,1969.6,0.003]
[1772925509898,0.002,1969.8,1969.7,0.003]
[1772925510080,0.002,1969.8,1969.6,0.003]
[1772925511896,0.002,1969.8,1969.6,0.503]
[1772925512397,0.002,1969.8,1969.7,0.503]
[1772925512596,0.002,1969.8,1969.7,0.5]
[1772925514471,0.00353886,1970.0,1969.8,0.5]
[1772925516176,1.27238116,1970.3,1970.0,0.49823057]
[1772925517103,0.00353886,1970.3,1970.0,0.49823057]
[1772925519681,0.002,1970.2,1970.0,0.49823057]
[1772925521305,0.002,1970.2,1970.1,0.003]
[1772925529109,0.002,1970.2,1969.8,0.45110982]
[1772925531510,0.002,1970.1,1969.8,0.45110982]
[1772925538222,0.4767657,1970.1,1969.8,0.45110982]
[1772925538393,1.74577761,1970.1,1969.8,0.45110982]
[1772925538923,0.002,1970.1,1969.8,0.45110982]
[1772925539221,1.27097124,1970.1,1969.8,0.45110982]
[1772925540122,0.002,1970.2,1969.9,0.45110982]
[1772925543926,0.002,1970.2,1970.0,0.47902472]
[1772925544225,0.002,1970.1,1970.0,0.47902472]
[1772925559829,1.26876861,1970.5,1970.1,0.47802472]
[1772925560035,1.72393491,1970.5,1970.1,0.47802472]
[1772925563746,1.72388162,1970.5,1970.2,0.47802472]
[1772925563949,1.26845603,1970.9,1970.2,0.47802472]
[1772925564143,1.72362233,1970.9,1970.2,0.47802472]
[1772925564338,0.4551663,1970.8,1970.3,1.2688423]
[1772925564654,0.4551663,1970.8,1970.4,0.47802472]
[1772925565946,0.4551663,1970.8,1970.1,1.2689401]
[1772925566151,0.4551663,1970.8,1970.2,0.47802472]
[1772925567854,0.4551663,1970.7,1970.3,0.47802472]
[1772925569342,0.4571663,1970.7,1970.3,0.47802472]